Cogmind - Beta 16.1 @@@ ROGUE MODE // 2026.02.18 @ 21:07:48 Player: Xcalibur Result: Destroyed by JK-S5C(R) with Subdweller Beam Cannon Performance ------------- Evolutions (0) 0 Regions Visited (2) 400 Robots Destroyed (22) 110 Value Destroyed (549) 549 Prototype IDs (18) 360 Alien Tech Used (0) 0 Bonus (0) 0 TOTAL SCORE: 1419 Bonus ------- None Cogmind --------- Core Integrity 0/250 Matter 300/300 Energy 100/100 System Corruption 0% Temperature Warm (198) Movement Treading (250) Ox1 Location -10/Subcaves Parts ------- > --- POWER (1) -------- Subdweller Power Source > --- PROPULSION (2) --- Light Treads Spiked Treads > --- UTILITY (2) ------ High-capacity Storage Unit Seismic Detector > --- WEAPON (2) ------- Subdweller Laser Subdweller Laser > --- INVENTORY (20) --- Subdweller Power Source Light Treads Light Treads Spiked Treads Wheel Subdweller Monowheel Subdweller Monowheel Huge Storage Unit Subdweller Optics Subdweller Optics Makeshift Light Armor Plating Rainbow Chip Riot Gun Beam Cannon Assault Rifle Battle Rifle Subdweller Shrapnel Launcher Subdweller Shrapnel Launcher Mining Laser Multitool Peak State ------------ > --- POWER ------------ Subdweller Power Source > --- PROPULSION ------- Light Treads Spiked Treads > --- UTILITY ---------- High-capacity Storage Unit Seismic Detector > --- WEAPON ----------- Subdweller Laser Subdweller Laser > --- INVENTORY -------- Subdweller Power Source Subdweller Power Source Light Treads Spiked Treads Wheel Subdweller Monowheel Subdweller Monowheel Subdweller Monowheel Huge Storage Unit Subdweller Optics Subdweller Optics Subdweller Optics Rainbow Chip Riot Gun Beam Cannon Assault Rifle Battle Rifle Subdweller Shrapnel Launcher Subdweller Shrapnel Launcher Mining Laser [Rating: 15] Favorites ----------- Power Ion Engine Engine Ion Engine Propulsion Light Treads Treads Light Treads Leg Aluminum Leg Wheel Wheel Utility Seismic Detector Device Seismic Detector Storage High-capacity Storage Unit Protection Light Armor Plating Weapon Subdweller Laser Energy Gun Subdweller Laser Energy Cannon Subdweller Beam Cannon Ballistic Gun Light Assault Rifle Special Weapon Mining Laser Build | -11 -10 -10 ------- Run | Yrd Mat Sub Slots Evolved . | . . . Power . | . . . Propulsion . | . . . Utility . | . . . Weapon . | . . . Parts Attached 31 | 4 10 17 Power 3 | . 1 2 Engine 3 | . 1 2 Core . | . . . Reactor . | . . . Propulsion 10 | 2 1 7 Treads 6 | 2 . 4 Leg . | . . . Wheel 4 | . 1 3 Hover . | . . . Flight . | . . . Utility 9 | 1 5 3 Device 6 | 1 3 2 Storage 2 | . 2 . Processor . | . . . Hackware . | . . . Protection 1 | . . 1 Artifact . | . . . Weapon 9 | 1 3 5 Energy Gun 3 | . 1 2 Energy Cannon 2 | . . 2 Ballistic Gun 3 | 1 1 1 Ballistic Cannon . | . . . Launcher . | . . . Special Weapon 1 | . 1 . Impact Weapon . | . . . Slashing Weapon . | . . . Piercing Weapon . | . . . Special Melee Weapon . | . . . Unidentified Prototypes . | . . . Parts Lost 6 | . 1 5 Power 2 | . 1 1 Propulsion 2 | . . 2 Utility 1 | . . 1 Weapon 1 | . . 1 Highest Loss Streak 4 | . 1 4 To Critical Strikes . | . . . Average Backups 14 | 4 8 18 Power 1 | 1 1 1 Propulsion 3 | 2 2 4 Utility 3 | . 2 4 Weapon 5 | . 2 7 Tool/Special . | . . . Unused Backups 29 | 8 3 18 Power 4 | 1 2 1 Propulsion 9 | 4 1 4 Utility 7 | 1 . 6 Weapon 8 | 2 . 6 Tool/Special 1 | . . 1 Average Slot Usage (%) 98 | . 99 97 Engine 12 | . 14 12 Treads 24 | . 23 24 Wheel 3 | . 4 3 Device 12 | . 14 12 Storage 14 | . 14 14 Energy Gun 15 | . 7 19 Energy Cannon 1 | . . 2 Ballistic Gun 10 | . 20 5 Peak Build Rating 15 | 7 9 15 Average Rating 10 | 6 7 12 On Entrance 7 | 6 7 8 Avg Prop Armor Cover (%) 12 | . 12 12 Naked Turns . | . . . Heaviest Build 56 | 13 49 56 Greatest Support 40 | 40 40 40 Greatest Overweight (x) 5 | . 4 5 Average Overweight (x) 1 | . . 1 Largest Inventory Capacity 20 | 8 20 20 Average Capacity 16 | 8 10 19 Most Carried 20 | 6 15 20 Average Carried 14 | 3 8 18 Final Capacity 20 | 8 15 20 Final Carried 20 | 4 15 20 Class Distribution -------------------- 53% | Mutant 46% | Scavenger-Mutant Dominant Class ---------------- Mutant | -10/Materials Scavenger-Mutant | -10/Subcaves Resources | -11 -10 -10 ----------- Run | Yrd Mat Sub Matter Collected 855 | 258 247 350 Remotely . | . . . Salvage Created 805 | 93 411 301 Parts 62 | 10 29 23 Haulers Intercepted 1 | . 1 . Recyclers Shooed 2 | 1 1 . Parts Field Recycled . | . . . Retrieved Matter . | . . . Parts Self-Destructed 4 | . . 4 Prevented . | . . . Parts Restored . | . . . Kills | -11 -10 -10 ------- Run | Yrd Mat Sub Combat Hostiles Destroyed 11 | . 4 7 Guns 11 | . 4 7 Classes Destroyed 8 | 2 4 2 Tunneler 3 | 2 1 . Hauler 1 | . 1 . Recycler 2 | 1 1 . Operator 2 | . 2 . Watcher 3 | . 3 . Grunt 4 | . 4 . Sentry 1 | . . 1 Subdweller 6 | . . 6 Best Kill Streak 3 | 2 3 2 Combat Bots Only 2 | . 2 2 Max Kills in Single Turn 1 | 1 1 1 Gunslinging . | . . . Exploded . | . . . Melee . | . . . Uniques/NPCs Destroyed . | . . . Combat | -11 -10 -10 -------- Run | Yrd Mat Sub Hostile Shots Fired 73 | . 25 48 Missed 24 | . 7 17 Hits 49 | . 18 31 Projectile 49 | . 18 31 AOE 10 | . . 10 Critical Strikes 3 | . . 3 Damage Taken 1288 | . 309 979 Core 251 | . 21 230 Absorbed by Shields . | . . . Regen/Repaired (Parts) 58 | . 58 . Core Remaining (%) 100 | 100 . . Volleys Fired 84 | 9 46 29 Largest 2 | 2 2 2 Hottest 120 | 40 100 120 Shots Fired 160 | 18 91 51 Gun 143 | 18 90 35 Cannon 12 | . . 12 Launcher . | . . . Special 5 | . 1 4 Kinetic 111 | 18 72 21 Thermal 49 | . 19 30 Explosive . | . . . Electromagnetic . | . . . Robot Hit Streak 9 | 5 9 9 Robot Miss Streak 3 | 2 3 2 Penetration Max . | . . . Secondary Targets 1 | . . 1 Max Gunslinging Chain 1 | . . 1 Shots Hit Robots 106 | 12 61 33 Core Hits 46 | 6 27 13 Critical Kills 2 | . . 2 Critical Parts Destroyed . | . . . Critical Strikes 3 | . . 3 Destroy 3 | . . 3 Melee Attacks . | . . . Impact . | . . . Slashing . | . . . Piercing . | . . . Sneak Attacks . | . . . Combat Hostiles . | . . . Follow-up Attacks . | . . . Damage Inflicted 1346 | 99 576 671 Guns 1121 | 99 571 451 Cannons 220 | . . 220 Explosions . | . . . Melee . | . . . Ramming 5 | . 5 . Kinetic 772 | 99 409 264 Thermal 569 | . 162 407 Explosive . | . . . Electromagnetic . | . . . Impact . | . . . Slashing . | . . . Piercing . | . . . Highest Corruption . | . . . Average Corruption . | . . . Corruption Purged . | . . . Corruption Blocked . | . . . Overload Shots . | . . . Overflow Damage . | . . . Projectiles . | . . . Explosions . | . . . Melee . | . . . Knockbacks . | . . . Impact . | . . . Kinetic . | . . . Secondary . | . . . Self-Inflicted Damage . | . . . Shots . | . . . Rammed 2 | . 2 . Targets Rammed 2 | . 2 . Kicked . | . . . Crushed . | . . . Highest Temperature 234 | . 60 234 Average Temperature 21 | . 16 38 Received Heat Transfer 465 | . 132 333 Siege Activations . | . . . Martial Activations . | . . . Shielding Activations . | . . . Robots Disrupted . | . . . Combat Hostiles . | . . . Robots Corrupted . | . . . Combat Hostiles . | . . . Parts Fried . | . . . Impact Corruptions . | . . . Robots Melted . | . . . Combat Hostiles . | . . . Parts Melted 2 | . . 2 Heat Transferred 1039 | . 481 558 Parts Sabotaged . | . . . Parts Stolen . | . . . Parts Stripped . | . . . Power Chain Reactions . | . . . Alert | -11 -10 -10 ------- Run | Yrd Mat Sub Maximum Alert Level . | . . . Low Security (%) 100 | 100 100 . Level 1 . | . . . Level 2 . | . . . Level 3 . | . . . Level 4 . | . . . Level 5 . | . . . High Security . | . . . Max Security . | . . . Peak Influence 54 | 5 54 . Initial . | . . . Average 8 | 1 8 . Influence Increases 276 | 15 241 20 Destroy 0b10 Robot/C 100 | . 80 20 Destroy 0b10 Robot/NC 55 | 15 40 . Destroy Leader 38 | . 38 . Successful Hack 22 | . 22 . Select Force Hacks 60 | . 60 . Destroy Structure 1 | . 1 . Influence Decreases 276 | 15 215 46 Entered New Map 14 | . . 14 Time Decay 250 | 15 205 30 Lost Part 12 | . 10 2 Squads Dispatched 5 | . 5 . Investigation 2 | . 2 . Extermination . | . . . Reinforcement 3 | . 3 . Assault . | . . . Garrison . | . . . Intercept . | . . . Searches Triggered . | . . . Construction Impeded . | . . . Haulers Reinforced . | . . . Active Scanning Responses . | . . . Cargo Convoy Interrupts . | . . . Stealth | -11 -10 -10 --------- Run | Yrd Mat Sub Distress Signals . | . . . Communications Jammed . | . . . Distress Signals . | . . . Times Spotted 21 | . 11 10 Peak Tracking Total 3 | . 3 2 Tactical Retreats . | . . . Traps | -11 -10 -10 ------- Run | Yrd Mat Sub Traps Triggered 1 | . 1 . Indirectly . | . . . Trap Hack Attempts . | . . . Triggered . | . . . Disarmed . | . . . Reprogrammed . | . . . Reused . | . . . Traps Extracted . | . . . Installed . | . . . Triggered . | . . . Machines | -11 -10 -10 ---------- Run | Yrd Mat Sub Machines Disabled 1 | . . 1 Max in Single Turn 1 | . . 1 Machines Repaired . | . . . Machines Dismantled . | . . . Machines Sabotaged . | . . . Overloaded Fab Kills . | . . . Hacking | -11 -10 -10 --------- Run | Yrd Mat Sub Machines Accessed 8 | . 6 2 Terminals 3 | . 3 . Fabricators . | . . . Repair Stations 1 | . 1 . Recycling Units 2 | . 2 . Scanalyzers . | . . . Garrison Access . | . . . Total Hacks 24 | . 19 5 Successful 17 | . 12 5 Failed 7 | . 7 . Catastrophic 1 | . 1 . Database Lockouts . | . . . Manual 8 | . 8 . Terminals 12 | . 12 . Fabricators . | . . . Repair Stations 3 | . 3 . Recycling Units 4 | . 4 . Scanalyzers . | . . . Garrison Access . | . . . Terminal Hacks 11 | . 6 5 Record 4 | . . 4 Robot Analysis 1 | . 1 . Prototype ID Bank 3 | . 3 . Locate Traps 1 | . 1 . Registered Components 1 | . 1 . Proto ID Catalog 1 | . . 1 Fabricator Hacks . | . . . Repair Station Hacks 2 | . 2 . Scan Component 1 | . 1 . Repair 1 | . 1 . Recycling Unit Hacks 1 | . 1 . Retrieve Components 1 | . 1 . Scanalyzer . | . . . Garrison Access Hacks . | . . . Unauthorized Hacks 3 | . 3 . Terminals 1 | . 1 . Botnet 1 | . 1 . Fabricators . | . . . Repair Stations . | . . . Recycling Units 2 | . 2 . Tunnel 2 | . 2 . Scanalyzers . | . . . Garrison Access . | . . . Data Cores Recovered . | . . . Used . | . . . Hacking Detections 4 | . 4 . Full Trace Events . | . . . Feedback Events . | . . . Feedback Blocked . | . . . Robot Schematics Acquired . | . . . Robots Built . | . . . Authchips . | . . . Time . | . . . Total Robot Build Rating . | . . . Part Schematics Acquired . | . . . Parts Built . | . . . Authchips . | . . . Time . | . . . Total Part Build Rating . | . . . Part Studies Acquired . | . . . Parts Repaired 1 | . 1 . Time 26 | . 26 . Parts Recycled . | . . . Recycled Matter . | . . . Retrieved Matter . | . . . Retrieved Components 9 | . 9 . Parts Scanalyzed . | . . . Part Schematics Acquired . | . . . Parts Damaged . | . . . Bothacking | -11 -10 -10 ------------ Run | Yrd Mat Sub Used RIF Installer . | . . . Robots Hacked . | . . . Non-combat . | . . . Combat . | . . . Robot Hacks Applied . | . . . Relay Couplers Released . | . . . Fabnet Peak Effective % . | . . . Robots Rewired . | . . . Allies Hacked . | . . . Hacks Repelled . | . . . Allies | -11 -10 -10 -------- Run | Yrd Mat Sub Total Allies . | . . . Largest Group . | . . . Highest-Rated Group . | . . . Highest-Rated Ally . | . . . Total Orders . | . . . Ally Attacks . | . . . Total Damage . | . . . Kills . | . . . Allies Corrupted . | . . . Allies Melted . | . . . Intel | -11 -10 -10 ------- Run | Yrd Mat Sub Active Infowar (turns) 2970 | 9 821 2140 Optics 195 | . . 195 Terrain 146 | . 146 . Seismic 2629 | 9 675 1945 Robot Analysis Total 1 | . 1 . Derelict Logs Recovered 1 | . . 1 Drone Launches . | . . . Drone Recoveries . | . . . Exploration | -11 -10 -10 ------------- Run | Yrd Mat Sub Turns Passed 3788 | 70 1204 2514 Spaces Moved 1752 | 20 596 1136 Core . | . . . Treads 1046 | 20 376 650 Legs . | . . . Wheels 706 | . 220 486 Hover . | . . . Flight . | . . . Fastest Speed 110 | 160 110 110 Average Speed 177 | 160 144 194 Slowest Speed 250 | 160 160 250 Overloaded Moves . | . . . Propulsion Burnouts . | . . . Robots Hopped . | . . . Potential Cave-ins . | . . . Cave-ins Triggered . | . . . Exploration Rate (%) 48 | 3 71 70 Regions Visited 2 Branch Regions 1 Pre-discovered Areas 2 | . 2 . Known Exits Taken . | . . . Unknown Exits Taken 2 | 1 1 . Scrap Searched 3 | . . 3 Spaces Dug 1 | . 1 . Terrain Destroyed 1 | . 1 . Melee . | . . . Projectile 1 | . 1 . AOE . | . . . Terrain Rammed . | . . . Walls Destroyed . | . . . Machines Disabled . | . . . Actions | -11 -10 -10 --------- Run | Yrd Mat Sub Total 2276 | 46 852 1378 Wait 313 | 6 171 136 Move 1750 | 19 595 1136 Hop . | . . . Pick Up 44 | 3 15 26 Fast Attach 2 | 1 . 1 Attach 10 | 3 2 5 Detach . | . . . Swap 41 | . 16 25 Drop 30 | 5 5 20 Fire 84 | 9 46 29 Melee . | . . . Ram . | . . . Kick . | . . . Crush 2 | . 2 . Escape Stasis . | . . . Rewire . | . . . Trap . | . . . Miscellaneous . | . . . Route ------- -11/Scrapyard -10/Materials (discovered 4 exits: [*Mat x2] / [*Min] / *Sub) -10/Subcaves (discovered 1 exit: [*Mat]) History --------- Turn | Location | Event 11 | -11/Scrapyard | Discovered new exit (range 3) 71 | -11/Scrapyard | Entered Materials 317 | -10/Materials | Build established: Mutant 598 | -10/Materials | Discovered new exit (range 14) 876 | -10/Materials | Discovered new exit (range 7) 1033 | -10/Materials | Repaired Lgt. Treads 1041 | -10/Materials | Discovered new exit (range 5) 1244 | -10/Materials | Discovered new exit (range 8) 1275 | -10/Materials | Entered Subcaves 1276 | -10/Subcaves | Approached by a straggling Scientist 1368 | -10/Subcaves | Learned Materials emergency access door positions 1859 | -10/Subcaves | Visited Clippyterm 1866 | -10/Subcaves | Learned Research security intel 1866 | -10/Subcaves | Learned 40 Factory zone layouts 1998 | -10/Subcaves | Core integrity fell below 50% 2028 | -10/Subcaves | Lost 4 parts (1p2n1u) 2358 | -10/Subcaves | Build established: Scavenger-Mutant 2913 | -10/Subcaves | Visited 4L-MR0's lab 2943 | -10/Subcaves | Found Rainbow Chip 3515 | -10/Subcaves | Discovered new exit (range 15) 3788 | -10/Subcaves | Core integrity fell below 20% 3789 | -10/Subcaves | Destroyed by JK-S5C(R) with Subdweller Beam Cannon Last Messages --------------- 03008_ Acquired 18 matter. 03016_ Dropped Sub. Monowheel. 03016_ Acquired Lgt. Treads. 03021_ Subatomizers dissect the Sub. Monowheel. 03045_ Searching scrap... 03045_ Found Mak. Light Armor Plating. 03045_ Found 49 Matter. 03050_ Dropped Sub. Optics. 03050_ Acquired Mak. Light Armor Plating. 03056_ Subatomizers dissect the Sub. Monowheel. 03145_ Sub. Power Source shoots sparks and powers down. 03515_ EXIT=FOUND 03612_ Subatomizers dissect the Wheel. 03627_ Subatomizers dissect the Sub. Monowheel. 03630_ Acquired 11 matter. 03635_ Dropped Broken Sub. Power Source. 03635_ Acquired Multitool. 03666_ Acquired 19 matter. 03731_ Subatomizers dissect the Broken Sub. Power Source. 03787_ Critical hit (Meltdown: +270). Map ----- +----------------------------------------------------+ | ?? ?????????????????????????????????????????? | | ??? ?????????????????????????????????????????? | | ???# ?????????????????????????????????????????? | | ??## ?????????????????????????????????????????? | | ??# ?????????????????????????????????????????? | | ??? #?????????????????????????????????????????? | | ????# ##????????????????????????????????????????? | | ????# ##???????????????????????????????????????? | | ##### #???????????????????????????????????????? | | # #######?????####??##????????????????????? | | ?# ##??### ### #????????????????????? | | ## ##?# #????????????????????? | | ## #?# #????????????????????? | | ## ### #????????????????????? | | ### ## #????###??????????????? | | #?# ##?## #??????????????? | | #### ### ### #??????????????? | | #?### ### < #???????????????? | | #?## ### ### ##???????????????? | | ??# #?# ## #########????????????????? | | ??# ##?### ##### ## ######????????????????? | | ??# #######?#### ## #????????????????? | | ??# ##??# ## #????????????????? | | ??## #??# ######???????????? | | #??##### #??## ## ## ## ## #???????????? | | #??????# #???##?### ###@ ## #???????????? | | #?###### #######??###?# = ##??????????? | | ?## ## ##?????## !% ##?????????? | | ## #??????## ### #?????????? | | # ## ##???????# ##?## #?????????? | | # ## #????????## #???# ########### | | ## ##????????# * #???# ## ""# | | ?## #???????## =##??# "# | | ?## ## #?####### ##?# #### | | ?# ## #?# ##R #?# ##??? | | ## ## #?## ### #?### " #???? | | # ### ## #??# ### R#???#"" ###???? | | #?# #### ##?## #?? " ##?????? | | #?###### #??###### #?# "" ##??????? | | ### #????# ##???????# """"##""###???????? | | ##?# #????# #???????## " " ###??????????? | | #??# #??## #????????## " " ?????????????? | | ##??## ##??# #?????????##"""" "????????????? | | ?????####???# #?##???????? ?????????????? | | ????????????# ## ####????? ??????????????? | | ??????#####?# #?????# ##??????????????? | | ??##### %!##### ##?????##???????????????? | | ??#! #### "### ##?????????????????????? | | ??# "####" ## #?????????????????????? | | ??##/ ##" ###" #????????????????????? | +----------------------------------------------------+ Best States ------------- Heat Dissipation 35 Energy Generation 15 Energy Capacity 250 Matter Stores 300 Matter Capacity 300 Sight Range 21 Terrain Scan Range 16 Terrain Scan Density 10 Armor Coverage 150 Evasion (%) 40 Recoil Reduction 2 Item Schematics ----------------- None Robot Schematics ------------------ None Fabricated ------------ Nothing Repaired ---------- Lgt. Treads | 58% | -10/Materials Studied --------- None Alien Tech Used ----------------- None Achievements -------------- None Challenges ------------ None Game ------ Seed MinesnifferScrapHarness Manual? 0 Play Time 00:27:04 Cumulative 188.1 hours Start 2026.02.18 @ 20:21:49 End 2026.02.18 @ 21:07:48 Sessions 2 Manual Loads 0 Difficulty Rogue Special Mode None Game No. 70 Rogue 70 Adventurer 0 Explorer 0 Win Type - Total 9 Types 7/0/1/1/0/0/0/0/0/0 Lore% 65 Gallery% 61 Achievement% 54 Wizard Run 0 Options --------- Layout 0 ASCII 0 Keyboard 0 Movement Arrows Keybinds 0 Fullscreen 2 Font 18/Terminus Map View 76x50 Zoom Use 0% Tactical HUD 1 Map Filters NONE Filters NONE Steam 1 RUN: b2f52e49-6453-4e31-be06-6203e4b5fec3